[Event "Bangabandhu Premier Div League 2022"]
[Site "Dhaka"]
[Date "2022.12.04"]
[Round "5.1"]
[White "Aaryan Varshney"]
[Black "Rahman, Ziaur"]
[Result "1/2-1/2"]
[ECO "D37"]
[WhiteElo "2312"]
[BlackElo "2464"]
[Annotator "TA"]
[PlyCount "49"]
[EventDate "2022.11.30"]
[EventType "team-tourn"]
[EventCountry "BAN"]
[SourceTitle "playchess.com"]
[Source "ChessBase"]
[SourceQuality "1"]
[TimeControl "40/5400+30:1800+30"]

{[%evp 9,49,24,29,26,28,28,32,28,25,22,21,28,27,27,23,25,21,18,31,27,33,6,16,6,12,0,25,0,0,0,20,0,0,0,0,0,0,-7,0,-14,0,-16]} 1. d4 {[%emt 0:00:03]} d5 {[%emt 0:00:40]} 2. c4 {[%emt 0:00:05]} e6 {[%emt 0:00:50]} 3. Nc3 {[%emt 0:00:05]} a6 {[%emt 0:01:19]} 4. cxd5 {[%emt 0:00:09]} exd5 {[%emt 0:00:06]} 5. Nf3 {[%emt 0:00:07]} Nf6 {[%emt 0:00:26]} 6. Bg5 {[%emt 0:00:05] D37: Queen's Gambit Declined: 5 Bf4.} Be6 {[%emt 0:00:16]} 7. e3 {[%emt 0:00:04]} Nbd7 {[%emt 0:00:07]} 8. Bd3 {[%emt 0:00:09] White is slightly better.} c6 {[%emt 0:00:12]} 9. O-O {[%emt 0:00:07]} Bd6 {[%emt 0:00:04] Inhibits Ne5.} 10. Bf4 {[%emt 0:00:09]} Qc7 {[%emt 0:01:18]} 11. Bxd6 {[%emt 0:00:05]} Qxd6 {[%emt 0:00:05]} 12. h3 {[%emt 0:00:06]} O-O {[%emt 0:00:19]} 13. Qc2 {[%emt 0:00:02]} g6 {[%emt 0:00:48]} 14. Rac1 {[%emt 0:00:20]} a5 {[%emt 0:02:53] [#]} 15. Na4 $146 {[%emt 0:09:09]} ({Predecessor:} 15. Rfe1 Rfe8 16. a3 Nb6 17. Ne5 Nfd7 18. f4 f6 19. Nf3 Bf7 20. f5 Kg7 21. Qf2 {1-0 (93) Cheparinov,I (2660)-Niemann,H (2478) Sitges 2020}) 15... Qe7 {[%emt 0:07:06]} 16. Nc5 {[%emt 0:00:44]} Rfb8 {[%emt 0:01:52]} 17. Rfe1 {[%emt 0:02:11]} Nxc5 {[%emt 0:18:44]} 18. Qxc5 {[%emt 0:07:47]} Qd8 {[%emt 0:02:22] The position is equal.} 19. b3 {[%emt 0:02:28]} Ne4 {[%emt 0:03:31]} 20. Qc2 {[%emt 0:00:22]} Nd6 {[%emt 0:01:23]} 21. Ne5 {[%emt 0:04:35]} Qg5 {[%emt 0:02:57]} 22. Nf3 {[%emt 0:07:48]} Qf6 {[%emt 0:01:49][%cal Oe6h3]} 23. Ne5 {[%emt 0:00:55]} Qg5 {[%emt 0:04:31]} 24. Nf3 {[%emt 0:00:15]} Qf6 {[%emt 0:00:43][%cal Oe6h3]} 25. Ne5 {[%emt 0:00:07] An uneventful encounter.   Weighted Error Value: White=0.04 (flawless) /Black=0.05 (flawless)} 1/2-1/2

[Event "Bangabandhu Premier Div League 2022"]
[Site "Dhaka"]
[Date "2022.12.04"]
[Round "5.2"]
[White "Chanda, Sandipan"]
[Black "Alam, Monjur"]
[Result "1-0"]
[ECO "E73"]
[WhiteElo "2474"]
[BlackElo "1848"]
[Annotator "TA"]
[PlyCount "67"]
[EventDate "2022.11.30"]
[EventType "team-tourn"]
[EventCountry "BAN"]
[SourceTitle "playchess.com"]
[Source "ChessBase"]
[SourceQuality "1"]
[TimeControl "40/5400+30:1800+30"]

{[%evp 12,67,48,42,58,57,119,104,112,105,147,145,140,135,139,113,157,111,148,116,142,110,118,90,122,70,154,174,213,201,331,366,440,375,368,345,357,354,330,356,336,329,321,310,415,429,421,420,585,557,582,569,926,931,1052,1013,1006,1006]} 1. d4 {[%emt 0:00:04]} Nf6 {[%emt 0:07:52]} 2. c4 {[%emt 0:00:14]} g6 {[%emt 0:00:17]} 3. Nc3 {[%emt 0:00:10]} Bg7 {[%emt 0:00:09]} 4. e4 {[%emt 0:00:10]} d6 {[%emt 0:00:09]} 5. Be2 {[%emt 0:00:07]} O-O {[%emt 0:01:00]} 6. Bg5 {[%emt 0:00:10]} Nc6 {[%emt 0:03:15]} 7. d5 {[%emt 0:01:20]} Nb4 {[%emt 0:03:47][%cal Bc6b4,Bb4a6,Ba6c7][%mdl 32] E73: King's Indian: Averbakh Variation without 6...c5.} 8. Nf3 {[%emt 0:02:02]} c5 {[%emt 0:06:16]} ({Better is} 8... a5 $14) 9. h3 {[%emt 0:02:37] [#]} h6 $146 {[%emt 0:04:28] White is better.} ({Predecessor:} 9... Nd7 10. Qd2 Ne5 11. Nh2 Re8 12. a3 Na6 13. O-O Nb8 14. f4 Ned7 15. Bd3 Nf8 {1-0 (23) Herrera,J (2273)-Zuluaga A,E (2090) Boyaca 2022}) 10. Be3 {[%emt 0:00:20]} Ne8 {[%emt 0:02:45]} 11. a3 {[%emt 0:01:38]} Na6 {[%emt 0:00:14]} 12. Qd2 {[%emt 0:00:15]} Kh7 {[%emt 0:00:28]} 13. O-O {[%emt 0:01:54] White is more active.} Bd7 {[%emt 0:01:38]} 14. Rab1 {[%emt 0:01:16]} (14. Bf4 $142) 14... b6 {[%emt 0:02:05]} 15. b4 {[%emt 0:01:11][%cal Bb2b4,Bb4b5][%mdl 32]} Rb8 {[%emt 0:01:11]} 16. b5 {[%emt 0:01:05]} Nac7 {[%emt 0:00:14]} 17. Nh2 {[%emt 0:00:26]} e5 {[%emt 0:03:30]} 18. f4 {[%emt 0:01:34]} (18. Bd3 $16) 18... Qe7 {[%emt 0:07:30]} (18... exf4 $1 $14 19. Bxf4 Qf6) 19. f5 {[%emt 0:03:11]} g5 {[%emt 0:05:14]} 20. h4 {[%emt 0:00:32]} Bf6 {[%emt 0:09:17]} (20... gxh4 $142 21. Ng4 h5) 21. Ng4 $18 {[%emt 0:01:03]} Rg8 {[%emt 0:00:23]} 22. Kf2 {[%emt 0:02:08]} gxh4 {[%emt 0:02:42]} 23. Bxh6 {[%emt 0:07:01]} Bg5 {[%emt 0:06:12]} 24. Bxg5 {[%emt 0:00:25]} Qxg5 {[%emt 0:00:08]} 25. Qxg5 {[%emt 0:00:27] Dancing on a razor blade.} Rxg5 {[%emt 0:00:06]} 26. Rh1 {[%emt 0:00:10][%cal Bf1h1,Bh1h4,Bh4h6][%mdl 32]} Kg7 {[%emt 0:01:35]} 27. Rxh4 {[%emt 0:00:09]} Nf6 {[%emt 0:00:35]} 28. Nxf6 {[%emt 0:00:42]} Kxf6 {[%emt 0:00:01]} 29. Rh6+ {[%emt 0:00:09]} Ke7 {[%emt 0:01:18]} 30. f6+ {[%emt 0:00:05] White is clearly winning.} Kf8 {[%emt 0:01:02]} 31. Bh5 {[%emt 0:01:39] [#] Rh8+ is the strong threat.} Rg8 {[%emt 0:05:48] Inhibits Rh8.} 32. Rh7 {[%emt 0:02:47]} Be8 {[%emt 0:00:08]} 33. Nd1 {[%emt 0:00:23]} a6 {[%emt 0:02:02]} 34. bxa6 {[%emt 0:02:06] Weighted Error Value: White=0.13 (very precise) /Black=0.45} 1-0

[Event "Bangabandhu Premier Div League 2022"]
[Site "Dhaka"]
[Date "2022.12.04"]
[Round "5.2"]
[White "Aradhya, Garg"]
[Black "Iniyan, P."]
[Result "1/2-1/2"]
[ECO "E67"]
[WhiteElo "2289"]
[BlackElo "2534"]
[Annotator "TA"]
[PlyCount "136"]
[EventDate "2022.12.01"]
[EventCountry "BAN"]
[SourceTitle "playchess.com"]
[Source "ChessBase"]
[SourceQuality "1"]
[TimeControl "40/5400+30:1800+30"]

{[%evp 16,136,15,7,27,0,-7,-4,25,0,4,0,40,0,0,0,0,0,33,28,26,18,13,19,18,46,144,144,137,142,218,135,156,154,153,149,149,149,149,151,153,132,153,153,153,153,169,172,173,153,153,147,147,138,138,145,151,93,97,96,94,87,112,46,56,0,0,0,0,0,0,0,0,0,0,0,0,0,61,61,61,46,47,47,61,39,39,39,46,39,46,46,61,61,62,37,65,0,0,0,0,0,10,10,10,8,8,0,0,0,0,0,0,0,0,0,0,0,0,0,0,0,0]} 1. d4 {[%emt 0:00:03]} Nf6 {[%emt 0:00:15]} 2. c4 {[%emt 0:00:01]} g6 {[%emt 0:00:11]} 3. Nf3 {[%emt 0:00:03]} Bg7 {[%emt 0:00:08]} 4. g3 {[%emt 0:00:07]} O-O {[%emt 0:00:10]} 5. Bg2 {[%emt 0:00:05]} d6 {[%emt 0:00:07]} 6. Nc3 {[%emt 0:00:05]} Nbd7 {[%emt 1:32:39]} 7. d5 {[%emt 0:02:40]} Nb6 {[%emt 0:00:00]} 8. Nd2 {[%emt 1:31:26]} e5 {[%emt 0:00:00]} 9. O-O {[%emt 0:00:00]} a5 {[%emt 0:00:00] E67: King's Indian: Fianchetto: 6...Nbd7.} 10. b3 {[%emt 0:00:00] [#]} e4 $146 {[%emt 0:02:00][%cal Oe4e3]} ({Predecessor:} 10... Bf5 11. h3 a4 12. b4 e4 13. Ba3 e3 14. fxe3 Nh5 15. Rc1 Nxg3 16. Rf3 Qg5 17. h4 Qxh4 {1-0 (41) Weenink,H-Marshall,F Liege 1930}) 11. Qc2 {[%emt 0:01:30] Against e3} Re8 {[%emt 0:00:30]} 12. e3 {[%emt 0:00:30]} c6 {[%emt 0:00:30]} 13. Bb2 {[%emt 0:00:00]} (13. Bxe4 $2 Nxe4 14. Ndxe4 cxd5 15. cxd5 Rxe4 $1 {[%mdl 512]} 16. Nxe4 Bxa1 $19) 13... cxd5 {[%emt 0:00:00]} 14. cxd5 {[%emt 0:00:00][%cal Rd2e4]} Bf5 {[%emt 0:00:00]} 15. Nc4 {[%emt 0:01:30]} Rc8 {[%emt 0:01:30]} ({Don't play} 15... Nbxd5 16. Nxd5 Nxd5 17. Bxg7 Kxg7 18. Rad1 $14) 16. Nb5 {[%emt 0:00:30]} Qe7 {[%emt 0:00:30]} (16... Nfxd5 $2 17. Bxg7 Nxc4 18. bxc4 $16) 17. Nbxd6 {[%emt 0:00:30]} (17. Rfc1 {keeps more tension.} Nxc4 18. bxc4 Ng4 19. Bxg7 Kxg7 20. Qc3+) 17... Qxd6 {[%emt 0:00:00]} (17... Nbxd5 $2 18. Qd2 $18 (18. Nxc8 Rxc8 19. Qd2 Ra8 $18)) 18. Nxd6 {[%emt 0:00:00][%cal Bc4d6,Bd6e8,Be8c7][%mdl 96] Discovered Attack} Rxc2 {[%emt 0:00:00]} 19. Bxf6 {[%emt 0:01:00]} Bxf6 {[%emt 0:00:00]} 20. Nxe8 {[%emt 0:00:30]} Be5 {[%emt 0:00:00]} (20... Bxa1 $14 21. Rxa1 Nxd5) 21. Rfc1 {[%emt 0:00:00]} Rd2 {[%emt 0:00:00] [#]} 22. Rab1 $1 {[%emt 0:01:00]} Rxa2 {[%emt 0:00:00]} (22... Kf8 $16) 23. Nc7 {[%emt 0:00:30]} Rd2 {[%emt 0:03:30]} 24. h3 {[%emt 0:00:30]} h5 {[%emt 0:00:00] Against g4} 25. Nb5 {[%emt 0:00:30]} Rxd5 {[%emt 0:00:00]} 26. Nc3 {[%emt 0:00:00]} Bxc3 {[%emt 0:00:00]} 27. Rxc3 {[%emt 0:00:00]} Nd7 {[%emt 0:00:00]} 28. Rc4 {[%emt 0:01:30]} Nc5 {[%emt 0:02:30]} 29. b4 {[%emt 0:00:00]} axb4 {[%emt 0:00:00]} 30. Rcxb4 {[%emt 0:00:00]} Rd2 {[%emt 0:01:00] [#]} 31. R4b2 $1 {[%emt 0:00:00]} Rd5 {[%emt 0:00:30]} 32. Bf1 {[%emt 0:00:00]} Bd7 {[%emt 0:00:00]} 33. Bc4 {[%emt 0:00:00]} Re5 {[%emt 0:00:16]} 34. h4 Bc6 {[%emt 0:00:22]} 35. Bb5 {[%emt 0:00:00]} Nd3 {[%emt 0:01:22]} 36. Rb3 {[%emt 0:04:00]} ({White should play} 36. Bxd3 exd3 37. Ra1) 36... Kg7 $16 {[%emt 0:00:00]} 37. Bxc6 {[%emt 0:00:00]} bxc6 {[%emt 0:00:00][%cal Bb7c6,Bc6c5,Bc5c4][%mdl 4128] Endgame KRR-KRN} 38. Rc3 {[%emt 0:00:00]} c5 {[%emt 0:01:30]} 39. f3 {[%emt 0:00:00]} (39. Rc4 $16) 39... c4 $1 $14 {[%emt 0:00:00]} 40. Kg2 {[%emt 0:00:00]} ({Reject} 40. Rxc4 exf3 41. e4 Ra5 $11) (40. fxe4 $14 Rxe4 41. Kg2) 40... exf3+ $11 {[%emt 0:00:19]} 41. Kxf3 {[%emt 0:14:26]} Rf5+ {[%emt 0:03:03]} 42. Kg2 {[%emt 0:00:00][%cal Ob1f1]} Rf2+ {[%emt 0:00:36]} 43. Kg1 {[%emt 0:19:04][%cal Oc3d3] aiming for Rxd3!} Rf3 {[%emt 0:00:46][%csl LRe3,LRg3]} 44. Kg2 {[%emt 0:00:30]} Rf2+ {[%emt 0:03:20]} 45. Kg1 {[%emt 0:00:30][%cal Oc3d3] Hoping for Rxd3!} Rf3 {[%emt 0:25:26][%csl LRe3,LRg3]} 46. Kg2 {[%emt 0:00:30]} Rxe3 {[%emt 0:00:00]} (46... Rf2+ $11 47. Kg1) 47. Rxc4 $14 {[%emt 0:00:00]} Re2+ {[%emt 0:01:00]} 48. Kf3 {[%emt 0:00:00]} Ra2 {[%emt 0:00:00] ...Ne5+ is the strong threat.} 49. Re4 {[%emt 0:00:00] Prevents Ne5+.} Ra5 {[%emt 0:00:00]} 50. Ke2 {[%emt 0:00:00]} Ne5 {[%emt 0:00:00]} 51. Rb2 {[%emt 0:00:00]} Ng4 {[%emt 0:00:00]} 52. Rf4 {[%emt 0:03:00]} Re5+ {[%emt 0:00:00]} 53. Kf1 {[%emt 0:00:00]} Ne3+ {[%emt 0:00:00]} 54. Kg1 {[%emt 0:00:00]} Ra5 {[%emt 0:00:00]} 55. Rb7 {[%emt 0:00:00]} Nf5 {[%emt 0:00:00]} 56. g4 {[%emt 0:00:00]} (56. Rf3 $14) 56... hxg4 $11 {[%emt 0:00:00] The position is equal.} 57. Rxg4 {[%emt 0:02:30]} (57. Rb2 {is interesting.} Ra1+ 58. Kf2 g3+ 59. Kg2) 57... Ra1+ {[%emt 0:00:00]} 58. Kf2 {[%emt 0:00:00]} Rh1 {[%emt 0:00:00]} 59. Rbb4 {[%emt 0:00:00]} Rh3 {[%emt 0:00:00]} 60. Rbf4 {[%emt 0:00:00]} Kh6 {[%emt 0:00:00]} 61. Kg1 {[%emt 0:00:00]} Ne3 {[%emt 0:01:17]} 62. Rg5 {[%emt 0:02:30]} f5 {[%emt 0:01:03]} 63. Rd4 {[%emt 0:00:00]} (63. Ra4 $5 {[%cal Ra4a6]}) 63... Ng4 {[%emt 0:01:34]} 64. Rgxg4 {[%emt 0:00:00]} fxg4 {[%emt 0:00:06]} 65. Rxg4 {[%emt 0:00:00]} Kh5 {[%emt 0:00:06][%csl LRg4,LRh4]} 66. Rg5+ {[%emt 0:00:00]} Kxh4 {[%emt 0:00:05]} 67. Rxg6 {[%emt 0:00:00]} Rg3+ {[%emt 0:00:04]} 68. Rxg3 {[%emt 0:00:00]} Kxg3 {[%emt 0:00:03] Black defended with fortune.   Weighted Error Value: White=0.12 (very precise) /Black=0.12 (very precise)} 1/2-1/2

[Event "Bangabandhu Premier Div League 2022"]
[Site "Dhaka"]
[Date "2022.12.04"]
[Round "5.3"]
[White "Kushagra Mohan"]
[Black "Harsha Bharathakoti"]
[Result "0-1"]
[ECO "C07"]
[WhiteElo "2390"]
[BlackElo "2582"]
[Annotator "TA"]
[PlyCount "109"]
[EventDate "2022.11.30"]
[EventType "team-tourn"]
[EventCountry "BAN"]
[SourceTitle "playchess.com"]
[Source "ChessBase"]
[SourceQuality "1"]
[TimeControl "40/5400+30:1800+30"]

{[%evp 14,109,21,21,26,5,7,0,4,0,10,10,0,1,14,0,0,0,10,17,8,16,27,-52,-56,-60,-59,-58,-52,-58,-55,-56,-55,-55,-65,-105,-105,-95,-93,-107,-117,-129,-136,-136,-136,-136,-134,-135,-134,-126,-108,-122,-122,-122,-133,-108,-108,-135,-87,-183,-176,-243,-244,-243,-243,-244,-244,-243,-243,-237,-235,-221,-214,-1147,-229,-29955,-214,-29959,-29959,-29968,-29968,-29966,-29969,-29968,-29969,-29966,-29968,-29980,-29980,-29980,-29981,-29980,-29982,-29982,-29983,-29983,-29984,-29984]} 1. e4 {[%emt 0:00:03]} e6 {[%emt 0:00:48]} 2. d4 {[%emt 0:00:04]} d5 {[%emt 0:00:17]} 3. Nd2 {[%emt 0:00:05]} c5 {[%emt 0:00:24]} 4. exd5 {[%emt 0:00:04]} Qxd5 {[%emt 0:00:06]} 5. Ngf3 {[%emt 0:00:04]} cxd4 {[%emt 0:01:31]} 6. Bc4 {[%emt 0:00:05]} Qd8 {[%emt 0:00:09]} 7. O-O {[%emt 0:00:06]} Nc6 {[%emt 0:00:46]} 8. Nb3 {[%emt 0:00:07][%cal Rb3d4][%mdl 1024] White has compensation.} a6 {[%emt 0:00:11] C07: French Tarrasch: 3...c5, 4 Ngf3 and 4 exd5 Qxd5.} 9. a4 {[%emt 0:00:03][%cal Od1e2]} Nf6 {[%emt 0:06:08]} 10. Qe2 {[%emt 0:00:09]} (10. Nbxd4 {simplifies} Nxd4 11. Qxd4 Qxd4 12. Nxd4 Bd7 13. Bf4) 10... Bd6 {[%emt 0:03:45] The position is equal.} 11. Rd1 {[%emt 0:00:47]} Qe7 {[%emt 0:00:05]} 12. Nbxd4 {[%emt 0:00:37]} Nxd4 {[%emt 0:01:50]} 13. Rxd4 {[%emt 0:00:02]} e5 {[%emt 0:05:47] [#]} 14. Rxd6 {[%emt 0:00:10]} Qxd6 {[%emt 0:00:05]} 15. b3 $1 {[%emt 0:00:03][%cal Oc1a3] And now Ba3! would win.} ({Reject} 15. Qxe5+ Qxe5 16. Nxe5 Be6 $15) 15... Be6 {[%emt 0:26:43]} 16. Ba3 {[%emt 0:07:45] Prevents e4.} Bxc4 {[%emt 0:10:36]} 17. Qxc4 {[%emt 0:00:04]} Qd5 {[%emt 0:01:11]} 18. Qxd5 {[%emt 0:19:18]} ({Of course not} 18. Qc7 Nd7 19. c4 Qc6 $17) (18. Qc3 $1 $11 Nd7 19. Qe1) 18... Nxd5 $15 {[%emt 0:00:06]} 19. Nxe5 {[%emt 0:00:08] aiming for Re1.} f6 $36 {[%emt 0:09:57][%mdl 2048] Black is more active.} 20. Nc4 {[%emt 0:00:40]} b5 {[%emt 0:16:23]} 21. axb5 {[%emt 0:10:19]} axb5 {[%emt 0:00:06]} 22. Nd6+ {[%emt 0:00:03]} Kd7 {[%emt 0:00:09]} 23. Nxb5 {[%emt 0:00:09]} Kc6 {[%emt 0:00:30]} 24. c4 {[%emt 0:04:22] [#] Nd4+ is the strong threat.} Nc7 $1 {[%emt 0:00:28]} 25. Nd4+ {[%emt 0:03:07] [#]} Kb6 $146 {[%emt 0:06:04]} ({Predecessor:} 25... Kb7 26. h4 g6 27. g3 f5 28. Kg2 Rhe8 29. h5 Re4 30. Bb2 Rxa1 31. Bxa1 Ne6 32. hxg6 hxg6 33. Nxe6 Rxe6 {½-½ (38) Narayanan,S (2476)-Sedlak,N (2518) Palic 2016}) 26. Kf1 {[%emt 0:13:57]} Rhd8 {[%emt 0:00:53]} 27. c5+ {[%emt 0:01:25]} Kb7 {[%emt 0:00:04] Black is more active.} 28. Bb2 {[%emt 0:00:17]} Rxa1+ {[%emt 0:00:20]} 29. Bxa1 $17 {[%emt 0:00:00][%mdl 4096] Endgame KRN-KBN} Na6 {[%emt 0:09:05]} 30. c6+ {[%emt 0:01:10]} Kb6 {[%emt 0:00:03]} 31. Bc3 {[%emt 0:01:52]} Re8 {[%emt 0:00:33]} 32. b4 {[%emt 0:08:31]} Nc7 {[%emt 0:00:21]} 33. Bd2 {[%emt 0:00:29]} Nd5 {[%emt 0:00:27]} 34. f3 {[%emt 0:03:09] Prevents Re4.} g6 {[%emt 0:00:06]} 35. Kf2 {[%emt 0:04:28]} Ne7 {[%emt 0:01:12]} ({Better is} 35... Ra8 36. Ke2 Ra4) 36. b5 {[%emt 0:01:25]} (36. Be3 $17 {was necessary.}) 36... Nd5 $19 {[%emt 0:00:19]} 37. h4 {[%emt 0:01:10]} (37. Bc1 {is a better defense.}) 37... Kc5 {[%emt 0:00:12][%mdl 64] Deflection} 38. Ne2 {[%emt 0:05:25]} Kxb5 {[%emt 0:00:03]} 39. h5 {[%emt 0:00:04]} Kxc6 {[%emt 0:01:36]} 40. hxg6 {[%emt 0:00:06]} hxg6 {[%emt 0:00:03]} 41. Nf4 {[%emt 0:31:03]} Nxf4 {[%emt 0:08:27]} 42. Bxf4 {[%emt 0:00:00] KR-KB} Kd5 {[%emt 0:00:02]} 43. Kg3 $2 {[%emt 0:00:00]} (43. Be3) 43... Kd4 $2 {[%emt 0:24:09]} (43... Re2 44. Bc7 Ke6) 44. Bc1 $2 {[%emt 0:00:00]} (44. Kf2 $19) 44... Kd3 $2 {[%emt 0:00:00]} (44... Re2 {mates} 45. Bf4 Rc2 46. Bh6 Kd3 47. Bf8 f5 48. Be7 Ke3 49. Bd6 Rc4 50. f4 Ke2 51. Kh3 Rc3+ 52. Kh2 Kf2 53. Be5 Rd3 54. Bf6 Rd7 55. Bh4+ Kf1 56. Bf6 Kf2 57. Bh4+ Kf1 58. Bf6 Rd2 59. Kg3 Rxg2+ 60. Kf3 Rd2 61. Kg3 Rd3+ 62. Kh4 Kf2 63. Kg5 Rg3+ 64. Kh6 Ke3 65. Kh7 Kxf4 66. Kg7 Ke4 67. Bh4 Rg2 68. Kg8 f4 69. Kg7 g5 70. Be1 f3 71. Kf8 g4 72. Bh4 f2 73. Bxf2 Rxf2+ 74. Ke8 g3 75. Ke7 g2 76. Ke8 g1=Q 77. Ke7 Qg7+ 78. Kd6 Rc2 79. Ke6 Rc6#) 45. Bb2 $2 {[%emt 0:00:00]} (45. Kf2 $19) 45... Re6 {[%emt 0:00:00] Black mates.} 46. Kf4 {[%emt 0:00:00]} Rb6 {[%emt 0:00:00]} 47. Ba3 {[%emt 0:00:00]} Ke2 {[%emt 0:00:00]} 48. Be7 {[%emt 0:00:00]} Re6 {[%emt 0:00:00]} 49. Bc5 {[%emt 0:00:00]} Rc6 {[%emt 0:00:00]} 50. Bd4 {[%emt 0:00:00]} Rc4 {[%emt 0:00:00]} 51. Ke4 {[%emt 0:00:00] [#]} Rxd4+ $1 {[%emt 0:00:00][%mdl 512]} 52. Kxd4 {[%emt 0:00:00]} Kf2 {[%emt 0:00:00]} 53. f4 {[%emt 0:00:00]} Kxg2 {[%emt 0:00:00]} 54. Ke4 {[%emt 0:00:00]} f5+ {[%emt 0:00:00]} 55. Kd4 {[%emt 0:25:05] Weighted Error Value: White=0.48/Black=0.32} 0-1

[Event "Bangabandhu Premier Div League 2022"]
[Site "Dhaka"]
[Date "2022.12.04"]
[Round "5.3"]
[White "Reefat, Bin-Sattar"]
[Black "Sankalan Shah"]
[Result "1-0"]
[ECO "B20"]
[WhiteElo "2367"]
[BlackElo "2218"]
[Annotator "TA"]
[PlyCount "78"]
[EventDate "2022.12.01"]
[EventCountry "BAN"]
[SourceTitle "playchess.com"]
[Source "ChessBase"]
[SourceQuality "1"]
[TimeControl "40/5400+30:1800+30"]

{[%evp 9,78,4,28,18,42,32,64,52,65,58,54,59,61,62,64,39,199,193,334,317,330,304,297,236,240,235,246,218,244,237,210,222,254,248,331,322,313,300,302,294,274,268,312,295,292,281,267,222,364,364,359,359,394,381,404,383,477,523,627,623,577,566,646,527,1230,1215,5197,5197,1751,2368,2385]} 1. e4 {[%emt 0:00:21]} c5 {[%emt 1:31:00]} 2. b3 {[%emt 0:00:36]} d6 {[%emt 0:00:00]} 3. Bb2 {[%emt 0:00:58]} Nf6 {[%emt 0:01:00]} 4. Bb5+ Bd7 {[%emt 0:00:00]} 5. Bxd7+ {[%emt 0:00:21]} Nbxd7 {[%emt 0:00:00]} (5... Kxd7 6. e5 dxe5 7. Nf3 $14) 6. d3 {[%emt 1:31:14] B20: Sicilian: Unusual White 2nd moves.} e5 {[%emt 0:01:30] [#]} 7. Nh3 $146 {[%emt 0:00:30]} ({Predecessor:} 7. Ne2 g6 8. O-O Bg7 9. f4 exf4 10. Nxf4 O-O 11. Nc3 Nb6 12. a4 Qd7 13. Qb1 a5 {½-½ (27) Sudakova,I (2392)-Gaponenko,I (2448) Predeal 2006}) 7... Qc7 {[%emt 0:00:30]} 8. Nc3 {[%emt 0:00:30] White is slightly better.} Be7 {[%emt 0:00:30]} 9. f4 {[%emt 0:00:00]} a6 10. a4 {[%emt 0:01:00]} Nb8 {[%emt 0:01:00]} 11. O-O {[%emt 0:00:30]} Nc6 {[%emt 0:00:00]} 12. Nd5 Nxd5 {[%emt 0:01:00] This costs Black the game.} (12... Qd8 $1 $14) 13. exd5 $18 {[%emt 0:00:00]} Nb8 {[%emt 0:00:30]} (13... Nb4 $142 14. Qf3 Nxc2) 14. fxe5 {[%emt 0:00:00]} dxe5 {[%emt 0:00:30]} 15. Qh5 $1 {[%emt 0:02:00][%csl LRe5,LRf7]} Bf6 {[%emt 0:00:30]} 16. Rae1 {[%emt 0:00:30]} Nd7 {[%emt 0:00:00]} 17. Ng5 {[%emt 0:00:00]} g6 18. Qh6 {[%emt 0:01:00][%cal Of1f6] Rxf6! is the strong threat.} Bxg5 {[%emt 0:00:00]} 19. Qxg5 {[%emt 0:00:30][%cal Rb2e5]} O-O {[%emt 0:00:00]} 20. Bxe5 Qb6 {[%emt 0:02:30]} 21. Bc3 $40 {[%emt 0:01:00][%mdl 128] White goes for the king.} Rae8 {[%emt 0:00:00]} 22. Rxe8 {[%emt 0:00:00]} Rxe8 {[%emt 0:00:00]} 23. Qf4 {[%emt 0:01:00][%csl Gf1][%cal Rf4f7]} f6 {[%emt 0:00:00]} 24. a5 {[%emt 0:00:30]} ({Weaker is} 24. Bxf6 Rf8 25. d6 Rxf6 26. Qc4+ Kg7 27. Rxf6 Nxf6 $17) 24... Qd8 {[%emt 0:00:00]} 25. Qd6 {[%emt 0:00:30]} ({Don't do} 25. Bxf6 $6 Nxf6 26. Qxf6 Qxd5 $16) 25... Qe7 {[%emt 0:01:09]} 26. Qxe7 Rxe7 {[%emt 0:00:01][%mdl 4096] Endgame KRB-KRN} 27. Kf2 {[%emt 0:01:00]} Kf7 {[%emt 0:01:16]} 28. h3 {[%emt 0:00:00]} f5 (28... b5 $142 29. b4 cxb4 30. Bxb4 Re5) 29. Re1 {[%emt 0:01:00]} Rxe1 {[%emt 0:00:47]} 30. Bxe1 {[%emt 0:00:30] KB-KN} ({Less strong is} 30. Kxe1 Nf6 $16) 30... Nf6 {[%emt 0:00:27]} 31. c4 {[%emt 0:00:30]} Ke7 {[%emt 0:00:30]} 32. Kf3 {Strongly threatening Bh4.} Nd7 {[%emt 0:01:50]} 33. Kf4 {[%emt 0:00:00] Prevents Ne5. White is clearly winning.} h6 {[%emt 0:00:30]} 34. Bc3 {[%emt 0:01:30]} Kf7 {[%emt 0:00:00]} 35. g3 Kg8 36. d4 {[%emt 0:00:00] Threatens to win with b4.} Nf6 37. dxc5 {[%emt 0:01:30]} Ne4 {[%emt 0:00:54] [#]} 38. c6 $1 {[%emt 0:00:00]} bxc6 {[%emt 0:00:02] [#]} 39. dxc6 $1 {[%emt 0:01:00][%cal Of4e5] White wants to mate with Ke5!} Nd6 {[%emt 0:02:04] Weighted Error Value: White=0.12 (very precise) /Black=0.39} (39... Kf7 40. c7) 1-0